[Event "34th MPL National U12G Chess-ch 2022"]
[Site "Mysore"]
[Date "2022.04.11"]
[Round "6.6"]
[White "Saparya Ghosh"]
[Black "Gorli Nyna"]
[Result "0-1"]
[ECO "E68"]
[WhiteElo "1341"]
[BlackElo "1151"]
[Annotator "NA RC"]
[PlyCount "196"]
[EventDate "2022.04.09"]
[EventCountry "IND"]
[SourceTitle "playchess.com"]
[Source "ChessBase"]
[SourceQuality "1"]
[TimeControl "5400+30"]

1. d4 {[%emt 0:00:26]} g6 {[%emt 0:00:12]} 2. c4 {[%emt 0:00:08]} Nf6 {[%emt 0:00:06]} 3. g3 {[%emt 0:00:09]} Bg7 {[%emt 0:00:13]} 4. Bg2 {[%emt 0:00:06]} d6 {[%emt 0:00:18]} 5. Nc3 {[%emt 0:00:07]} O-O {[%emt 0:00:28]} 6. Nf3 {[%emt 0:00:04]} Nbd7 {[%emt 0:00:17]} 7. O-O {[%emt 0:00:11]} e5 {[%emt 0:01:02]} 8. e4 {[%emt 0:00:18]} exd4 {[%emt 0:00:51]} 9. Nxd4 {[%emt 0:00:13]} Re8 {[%emt 0:00:35]} 10. Re1 {[%emt 1:33:48]} a5 {[%emt 0:01:59]} 11. f3 {[%emt 0:00:00]} Nc5 {[%emt 0:02:14]} 12. Be3 {[%emt 0:00:00]} b6 {[%emt 0:04:36]} 13. Qd2 {[%emt 0:00:00]} Bb7 {[%emt 0:00:31]} 14. Rad1 {[%emt 0:00:00]} Qe7 {[%emt 0:02:20]} 15. Bh6 {[%emt 0:00:00]} Rad8 {[%emt 0:05:16]} 16. Bxg7 {[%emt 0:00:00]} Kxg7 {[%emt 0:00:17]} 17. Nd5 {[%emt 0:00:00]} Nxd5 {[%emt 1:17:45]} 18. cxd5 {[%emt 0:00:00]} Qf6 {[%emt 0:00:00]} 19. Bf1 {[%emt 0:00:00]} Re7 {[%emt 0:00:00]} 20. Qf2 {[%emt 0:00:00]} Ra8 {[%emt 0:00:00]} 21. Bd3 {[%emt 0:00:00]} Nxd3 {[%emt 0:00:00]} 22. Rxd3 {[%emt 0:00:00]} Rc8 {[%emt 0:00:00]} 23. Rc1 {[%emt 0:00:00]} h5 {[%emt 0:00:00]} 24. h4 {[%emt 0:00:00]} Kh7 {[%emt 0:00:00]} 25. Rdc3 {[%emt 0:00:00]} g5 {[%emt 0:00:00]} 26. Nf5 {[%emt 0:00:00]} Rd7 {[%emt 0:00:00]} 27. hxg5 {[%emt 0:00:00]} Qxg5 {[%emt 0:00:00]} 28. Qe3 {[%emt 0:00:00]} Qxe3+ {[%emt 0:00:00]} 29. Nxe3 {[%emt 0:00:00]} b5 {[%emt 0:00:00]} 30. Nf5 {[%emt 0:00:00]} Kg6 {[%emt 0:00:00]} 31. Nd4 {[%emt 0:00:00]} b4 {[%emt 0:00:00]} 32. Re3 {[%emt 0:00:00]} Kf6 {[%emt 0:00:00]} 33. Kf2 {[%emt 0:00:00]} Rh8 {[%emt 0:00:00]} 34. Rh1 {[%emt 0:00:00]} Ke5 {[%emt 0:00:00]} 35. Rd3 {[%emt 0:00:00]} Rdd8 {[%emt 0:00:00]} 36. Ke3 {[%emt 0:00:00]} Rdg8 {[%emt 0:00:00]} 37. Rg1 {[%emt 0:00:00]} Rg6 {[%emt 0:00:00]} 38. Nf5 {[%emt 0:02:32]} Kf6 {[%emt 0:00:00]} 39. Rc1 {[%emt 0:01:16]} Bc8 {[%emt 0:00:00]} 40. Kf4 {[%emt 0:03:11]} Bxf5 {[%emt 0:00:00]} 41. exf5 {[%emt 0:00:07]} Rg5 {[%emt 0:00:00]} 42. g4 {[%emt 0:03:33]} hxg4 {[%emt 0:00:00]} 43. fxg4 {[%emt 0:00:08]} Rh4 {[%emt 0:00:00]} 44. Rg1 {[%emt 0:01:57]} Rh2 {[%emt 0:00:00]} 45. Rb3 {[%emt 0:01:08]} Rf2+ {[%emt 0:00:00]} 46. Rf3 {[%emt 0:02:11]} Rxb2 {[%emt 0:00:00]} 47. a3 {[%emt 0:01:23]} bxa3 {[%emt 0:00:00]} 48. Rxa3 {[%emt 0:00:07]} Rb4+ {[%emt 0:00:00]} 49. Kf3 {[%emt 0:00:21]} a4 {[%emt 0:00:01]} 50. Rc3 {[%emt 0:00:50]} Rb3 {[%emt 0:04:20]} 51. Rxb3 {[%emt 0:00:20]} axb3 {[%emt 0:00:05]} 52. Rb1 {[%emt 0:00:42]} Ke5 {[%emt 0:00:07]} 53. Rxb3 {[%emt 0:00:12]} Kxd5 {[%emt 0:00:03]} 54. Rb8 {[%emt 0:00:39]} c5 {[%emt 0:01:03]} 55. Kf4 {[%emt 0:00:19]} Rg7 {[%emt 0:00:06]} 56. f6 {[%emt 0:01:20]} Rh7 {[%emt 0:00:09]} 57. Kf5 {[%emt 0:00:35]} c4 {[%emt 0:00:14]} 58. g5 {[%emt 0:00:35]} Kd4 {[%emt 0:00:13]} 59. Rb7 {[%emt 0:00:27]} c3 {[%emt 0:04:55]} 60. Rb1 {[%emt 0:00:31]} c2 {[%emt 0:00:16]} 61. Rf1 {[%emt 0:00:33]} Kd3 {[%emt 0:01:28]} 62. g6 {[%emt 0:00:11]} Rh5+ {[%emt 0:00:21]} 63. Kg4 {[%emt 0:00:37]} fxg6 {[%emt 0:00:06]} 64. f7 {[%emt 0:00:38]} Rh8 {[%emt 0:00:05]} 65. Kg5 {[%emt 0:00:35]} Kd2 {[%emt 0:00:13]} 66. Rf2+ {[%emt 0:00:15]} Kd1 {[%emt 0:00:12]} 67. Rf1+ {[%emt 0:00:23]} Ke2 {[%emt 0:00:06]} 68. Rg1 {[%emt 0:00:14]} Kd2 {[%emt 0:00:30]} 69. Rg2+ {[%emt 0:00:24]} Kc3 {[%emt 0:00:10]} 70. Rg1 {[%emt 0:01:15]} Kb2 {[%emt 0:00:06]} 71. Kxg6 {[%emt 0:00:29]} c1=Q {[%emt 0:00:13]} 72. Rxc1 {[%emt 0:00:25]} Kxc1 {[%emt 0:00:06]} 73. Kg7 {[%emt 0:00:24]} Ra8 {[%emt 0:00:04]} 74. Kf6 {[%emt 0:00:33]} d5 {[%emt 0:00:04]} 75. Ke5 {[%emt 0:00:09]} Rf8 {[%emt 0:00:08]} 76. Kxd5 {[%emt 0:00:08]} Rxf7 {[%emt 0:00:04]} 77. Ke6 {[%emt 0:00:03]} Rf4 {[%emt 0:00:09]} 78. Ke5 {[%emt 0:00:03]} Ra4 {[%emt 0:00:04]} 79. Kf5 {[%emt 0:00:03]} Kd2 {[%emt 0:00:03]} 80. Ke5 {[%emt 0:00:03]} Ke3 {[%emt 0:00:03]} 81. Kd5 {[%emt 0:00:04]} Kd3 {[%emt 0:00:11]} 82. Ke5 {[%emt 0:00:04]} Ra5+ {[%emt 0:00:09]} 83. Kf4 {[%emt 0:04:33]} Kd4 {[%emt 0:00:03]} 84. Kf3 {[%emt 0:00:00]} Re5 {[%emt 0:00:07]} 85. Kf4 {[%emt 0:00:00]} Rd5 {[%emt 0:00:21]} 86. Kf3 {[%emt 0:00:00]} Rg5 {[%emt 0:00:13]} 87. Kf4 {[%emt 0:00:00]} Re5 {[%emt 0:00:02]} 88. Kf3 {[%emt 0:00:00]} Re4 {[%emt 0:00:03]} 89. Kf2 {[%emt 0:00:00]} Rg4 {[%emt 0:00:12]} 90. Kf3 {[%emt 0:00:00]} Re4 {[%emt 0:00:04]} 91. Kf2 {[%emt 0:00:00]} Re3 {[%emt 0:00:04]} 92. Kg2 {[%emt 0:00:00]} Ke4 {[%emt 0:00:02]} 93. Kf2 {[%emt 0:00:00]} Kf4 {[%emt 0:00:01]} 94. Kg2 {[%emt 0:00:00]} Rf3 {[%emt 0:00:01]} 95. Kh2 {[%emt 0:00:00]} Rg3 {[%emt 0:00:07]} 96. Kh1 {[%emt 0:00:00]} Kf3 {[%emt 0:00:02]} 97. Kh2 {[%emt 0:00:00]} Kf2 {[%emt 0:00:01]} 98. Kh1 {[%emt 0:00:00]} Rh3# {[%emt 0:00:01]} 0-1

[Event "34th MPL National U12G Chess-ch 2022"]
[Site "Mysore"]
[Date "2022.04.12"]
[Round "7.1"]
[White "Prishita Gupta"]
[Black "Shriyana S Mallya"]
[Result "0-1"]
[ECO "E06"]
[WhiteElo "1412"]
[BlackElo "1277"]
[Annotator "NA RC"]
[PlyCount "110"]
[EventDate "2022.04.09"]
[EventCountry "IND"]
[SourceTitle "playchess.com"]
[Source "ChessBase"]
[SourceQuality "1"]
[TimeControl "5400+30"]

1. d4 {[%emt 0:00:03]} d5 {[%emt 0:00:07]} 2. g3 {[%emt 0:00:14]} Nf6 {[%emt 0:00:23]} 3. c4 {[%emt 0:00:46]} e6 {[%emt 0:00:06]} 4. Bg2 {[%emt 0:00:03]} Be7 {[%emt 0:00:53]} 5. Nf3 {[%emt 0:00:04]} O-O {[%emt 0:00:39]} 6. O-O {[%emt 0:00:05]} c6 {[%emt 0:00:38]} 7. Ne5 {[%emt 0:00:06]} b6 {[%emt 0:02:12]} 8. Nc3 {[%emt 0:00:24]} Ba6 {[%emt 0:03:56]} 9. cxd5 {[%emt 0:00:06]} cxd5 {[%emt 0:00:30]} 10. Bf4 {[%emt 0:00:35]} Bb7 {[%emt 0:01:52]} 11. Rc1 {[%emt 0:00:24]} Nbd7 {[%emt 0:14:11]} 12. Nb5 {[%emt 0:00:15]} Nxe5 {[%emt 0:03:44]} 13. Bxe5 {[%emt 0:00:11]} a6 {[%emt 0:02:42]} 14. Nc3 {[%emt 0:00:45]} Bd6 {[%emt 0:01:17]} 15. f4 {[%emt 0:00:34]} Ng4 {[%emt 0:06:17]} 16. Qd2 {[%emt 0:01:30]} Be7 {[%emt 0:09:38]} 17. Rcd1 {[%emt 0:03:01]} f6 {[%emt 0:01:05]} 18. Bh3 {[%emt 0:07:14]} Nh6 {[%emt 0:10:00]} 19. Bxe6+ {[%emt 0:00:08]} Kh8 {[%emt 0:00:09]} 20. Bc7 {[%emt 0:01:04]} Qxc7 {[%emt 0:01:01]} 21. Bxd5 {[%emt 0:00:24]} Bb4 {[%emt 0:04:11]} 22. Bxb7 {[%emt 0:01:31]} Qxb7 {[%emt 0:00:18]} 23. a3 {[%emt 0:00:34]} Bd6 {[%emt 0:00:58]} 24. e4 {[%emt 0:00:49]} Rad8 {[%emt 0:00:53]} 25. Qe2 {[%emt 0:01:04]} Rfe8 {[%emt 0:03:20]} 26. h3 {[%emt 0:02:04]} Nf5 {[%emt 0:02:13]} 27. Kh2 {[%emt 0:00:39]} Bc7 {[%emt 0:01:39]} 28. Qf2 {[%emt 0:01:38]} Ne7 {[%emt 0:03:29]} 29. Rfe1 {[%emt 0:02:12]} b5 {[%emt 0:01:45]} 30. Re2 {[%emt 0:03:34]} Bb6 {[%emt 0:00:59]} 31. Red2 {[%emt 0:06:51]} Qa7 {[%emt 0:03:06]} 32. Ne2 {[%emt 0:03:01]} Nc6 {[%emt 0:01:20]} 33. Qe3 {[%emt 0:01:00]} Qb7 {[%emt 0:04:28]} 34. Qf3 {[%emt 0:01:28]} Na5 {[%emt 0:01:56]} 35. Nc3 {[%emt 0:04:32]} Nc4 {[%emt 0:01:04]} 36. Rg2 {[%emt 0:01:33]} Rxd4 {[%emt 0:02:06]} 37. Re1 {[%emt 0:01:01]} h6 {[%emt 0:07:21]} 38. Qh5 {[%emt 0:01:58]} Qd7 {[%emt 0:00:33]} 39. Rge2 {[%emt 0:00:25]} Rd2 {[%emt 0:02:51]} 40. Nd5 {[%emt 0:00:27]} Rxe2+ {[%emt 0:00:23]} 41. Rxe2 {[%emt 0:00:17]} Ba7 {[%emt 0:00:49]} 42. b3 {[%emt 0:02:09]} Nb6 {[%emt 0:01:22]} 43. Rg2 {[%emt 0:02:59]} Nxd5 {[%emt 0:00:17]} 44. exd5 {[%emt 0:00:05]} Rd8 {[%emt 0:00:23]} 45. Rd2 {[%emt 0:00:11]} Be3 {[%emt 0:01:01]} 46. Rd3 {[%emt 0:00:05]} Bc1 {[%emt 0:00:11]} 47. b4 {[%emt 0:00:10]} Rc8 {[%emt 0:01:32]} 48. Qe2 {[%emt 0:00:47]} f5 {[%emt 0:01:17]} 49. d6 {[%emt 0:00:25]} Re8 {[%emt 0:00:41]} 50. Qd1 {[%emt 0:00:33]} Bb2 {[%emt 0:00:12]} 51. Qd2 {[%emt 0:00:35]} Bf6 {[%emt 0:00:05]} 52. Rd5 {[%emt 0:00:21]} Re4 {[%emt 0:00:56]} 53. h4 {[%emt 0:01:18]} Qe6 {[%emt 0:00:37]} 54. Kh3 {[%emt 0:00:17]} Re2 {[%emt 0:00:19]} 55. Qd1 {[%emt 0:00:13]} Qe4 {[%emt 0:00:17]} 0-1

[Event "34th MPL National U12G Chess-ch 2022"]
[Site "Mysore"]
[Date "2022.04.12"]
[Round "7.2"]
[White "Aadhya Jain"]
[Black "Shreya G Hipparagi"]
[Result "0-1"]
[ECO "B82"]
[WhiteElo "1128"]
[BlackElo "1552"]
[Annotator "NA RC"]
[PlyCount "80"]
[EventDate "2022.04.09"]
[EventCountry "IND"]
[SourceTitle "playchess.com"]
[Source "ChessBase"]
[SourceQuality "1"]
[TimeControl "5400+30"]

1. e4 {[%emt 0:00:06]} c5 {[%emt 0:00:25]} 2. Nf3 {[%emt 0:00:18]} Nc6 {[%emt 0:00:14]} 3. d4 {[%emt 0:00:07]} cxd4 {[%emt 0:00:10]} 4. Nxd4 {[%emt 0:01:04]} Nf6 {[%emt 0:00:41]} 5. Nc3 {[%emt 0:00:11]} d6 {[%emt 0:00:39]} 6. f4 {[%emt 0:00:51]} e6 {[%emt 0:00:23]} 7. Nf3 {[%emt 0:00:05]} Be7 {[%emt 0:01:06]} 8. Bd3 {[%emt 0:00:18]} a6 {[%emt 0:01:22]} 9. O-O {[%emt 0:00:20]} d5 {[%emt 0:04:25]} 10. e5 {[%emt 0:01:43]} Ng4 {[%emt 0:00:37]} 11. Kh1 {[%emt 0:01:35]} h5 {[%emt 0:07:21]} 12. h3 {[%emt 0:08:37]} b5 {[%emt 0:06:32]} 13. a3 {[%emt 0:02:08]} Qb6 {[%emt 0:02:56]} 14. Qe2 {[%emt 0:01:25]} Bb7 {[%emt 0:02:19]} 15. f5 {[%emt 0:03:40]} Nd4 {[%emt 0:09:20]} 16. Nxd4 {[%emt 0:07:04]} Qxd4 {[%emt 0:00:41]} 17. fxe6 {[%emt 0:01:55]} fxe6 {[%emt 0:01:53]} 18. Bg6+ {[%emt 0:01:03]} Kd7 {[%emt 0:01:33]} 19. Bf4 {[%emt 0:03:22]} Raf8 {[%emt 0:01:33]} 20. Rad1 {[%emt 0:01:26]} Qb6 {[%emt 0:05:51]} 21. Bxh5 {[%emt 0:02:31]} Rxh5 {[%emt 0:09:23]} 22. Qxg4 {[%emt 0:03:00]} Rhf5 {[%emt 0:05:01]} 23. h4 {[%emt 0:24:30]} g5 {[%emt 0:10:28]} 24. hxg5 {[%emt 0:06:22]} Rxf4 {[%emt 0:05:20]} 25. Rxf4 {[%emt 0:01:34]} Rh8+ {[%emt 0:00:29]} 26. Qh4 {[%emt 0:00:42]} Rxh4+ {[%emt 0:00:09]} 27. Rxh4 {[%emt 0:00:09]} Qf2 {[%emt 0:02:03]} 28. Rg4 {[%emt 0:03:39]} Qf5 {[%emt 0:01:08]} 29. Rh4 {[%emt 0:01:07]} Bxg5 {[%emt 0:00:54]} 30. Rh5 {[%emt 0:01:23]} Kc7 {[%emt 0:01:05]} 31. Rd4 {[%emt 0:01:12]} Qf1+ {[%emt 0:01:24]} 32. Kh2 {[%emt 0:00:17]} Bf4+ {[%emt 0:00:23]} 33. Kh3 {[%emt 0:00:21]} Qh1+ {[%emt 0:00:26]} 34. Kg4 {[%emt 0:00:06]} Qxg2+ {[%emt 0:00:07]} 35. Kxf4 {[%emt 0:00:11]} Qf2+ {[%emt 0:00:06]} 36. Kg5 {[%emt 0:00:22]} Qxd4 {[%emt 0:00:09]} 37. Kf6 {[%emt 0:00:42]} Qf4+ {[%emt 0:00:51]} 38. Kxe6 {[%emt 0:00:10]} Qg4+ {[%emt 0:00:13]} 39. Rf5 {[%emt 0:00:10]} Bc8+ {[%emt 0:00:05]} 40. Kxd5 {[%emt 0:01:20]} Qc4# {[%emt 0:00:10]} 0-1

[Event "34th MPL National U12G Chess-ch 2022"]
[Site "Mysore"]
[Date "2022.04.12"]
[Round "7.3"]
[White "Shubhi Gupta"]
[Black "Dheeptha B"]
[Result "1-0"]
[ECO "D13"]
[WhiteElo "1434"]
[BlackElo "1236"]
[Annotator "NA RC"]
[PlyCount "81"]
[EventDate "2022.04.09"]
[EventCountry "IND"]
[SourceTitle "playchess.com"]
[Source "ChessBase"]
[SourceQuality "1"]
[TimeControl "5400+30"]

1. d4 {[%emt 0:00:21]} d5 {[%emt 0:00:04]} 2. c4 {[%emt 0:00:22]} c6 {[%emt 0:00:09]} 3. Nc3 {[%emt 0:00:41]} Nf6 {[%emt 0:00:21]} 4. Nf3 {[%emt 0:00:28]} Bf5 {[%emt 0:00:34]} 5. cxd5 {[%emt 0:00:40]} cxd5 {[%emt 0:00:54]} 6. Qb3 {[%emt 0:00:32]} Qb6 {[%emt 0:09:56]} 7. Nxd5 {[%emt 0:01:39]} Qxb3 {[%emt 0:00:53]} 8. Nxf6+ {[%emt 0:00:48]} exf6 {[%emt 0:00:52]} 9. axb3 {[%emt 0:00:14]} Bc2 {[%emt 0:01:21]} 10. Bd2 {[%emt 0:01:44]} Bxb3 {[%emt 0:02:50]} 11. e4 {[%emt 0:02:17]} Be7 {[%emt 0:11:23]} 12. Bb5+ {[%emt 0:03:58]} Kd8 {[%emt 0:03:52]} 13. Ba5+ {[%emt 0:01:05]} b6 {[%emt 0:00:40]} 14. Bxb6+ {[%emt 0:02:26]} Kc8 {[%emt 0:14:21]} 15. O-O {[%emt 0:06:13]} Kb7 {[%emt 0:05:57]} 16. Ba5 {[%emt 0:01:12]} a6 {[%emt 0:02:36]} 17. Rfc1 {[%emt 0:02:07]} Rc8 {[%emt 0:02:35]} 18. Rxc8 {[%emt 0:00:26]} axb5 {[%emt 0:11:09]} 19. Rc7+ {[%emt 0:00:13]} Ka6 {[%emt 0:01:18]} 20. Rxe7 {[%emt 0:00:12]} Nc6 {[%emt 0:01:26]} 21. Bc3+ {[%emt 0:01:03]} Kb6 {[%emt 0:01:57]} 22. Rxa8 {[%emt 0:00:37]} Nxe7 {[%emt 0:00:28]} 23. d5 {[%emt 0:00:37]} Kc5 {[%emt 0:02:54]} 24. Nd2 {[%emt 0:02:12]} Bc4 {[%emt 0:02:13]} 25. b4+ {[%emt 0:00:29]} Kd6 {[%emt 0:02:12]} 26. Ra6+ {[%emt 0:00:45]} Kd7 {[%emt 0:00:29]} 27. Ra7+ {[%emt 0:00:13]} Kd6 {[%emt 0:00:35]} 28. Nxc4+ {[%emt 0:00:05]} bxc4 {[%emt 0:00:30]} 29. Rxe7 {[%emt 0:00:07]} Kxe7 {[%emt 0:00:11]} 30. b5 {[%emt 0:00:07]} Kd7 {[%emt 0:00:33]} 31. b6 {[%emt 0:00:03]} Kc8 {[%emt 0:00:32]} 32. d6 {[%emt 0:00:03]} Kd7 {[%emt 0:00:35]} 33. b7 {[%emt 0:00:07]} Kxd6 {[%emt 0:00:05]} 34. b8=Q+ {[%emt 0:00:08]} Kd7 {[%emt 0:00:08]} 35. Bb4 {[%emt 0:00:08]} Kc6 {[%emt 0:00:22]} 36. Qd6+ {[%emt 0:00:16]} Kb5 {[%emt 0:00:14]} 37. Qc5+ {[%emt 0:00:05]} Ka4 {[%emt 0:00:19]} 38. Qxc4 {[%emt 0:00:10]} h5 {[%emt 0:00:11]} 39. Bc5+ {[%emt 0:00:09]} Ka5 {[%emt 0:00:14]} 40. Qb4+ {[%emt 0:00:02]} Ka6 {[%emt 0:00:14]} 41. Qb6# {[%emt 0:00:03]} 1-0

[Event "34th MPL National U12G Chess-ch 2022"]
[Site "Mysore"]
[Date "2022.04.12"]
[Round "7.4"]
[White "Gorli Nyna"]
[Black "Sherali Pattnaik"]
[Result "0-1"]
[ECO "B22"]
[WhiteElo "1151"]
[BlackElo "1209"]
[Annotator "NA RC"]
[PlyCount "41"]
[EventDate "2022.04.09"]
[EventCountry "IND"]
[SourceTitle "playchess.com"]
[Source "ChessBase"]
[SourceQuality "1"]
[TimeControl "5400+30"]

1. e4 {[%emt 0:00:03]} c5 {[%emt 0:00:02]} 2. c3 {[%emt 0:00:09]} Nf6 {[%emt 0:00:47]} 3. e5 {[%emt 0:00:11]} Nd5 {[%emt 0:00:04]} 4. d4 {[%emt 0:00:21]} cxd4 {[%emt 0:00:07]} 5. cxd4 {[%emt 0:00:27]} e6 {[%emt 0:02:48]} 6. Nf3 {[%emt 0:00:33]} d6 {[%emt 0:02:34]} 7. Be2 {[%emt 0:05:41]} dxe5 {[%emt 0:04:05]} 8. dxe5 {[%emt 0:02:33]} Bc5 {[%emt 0:02:33]} 9. O-O {[%emt 0:02:27]} Nc6 {[%emt 0:03:10]} 10. b3 {[%emt 0:07:01]} Qc7 {[%emt 0:03:10]} 11. Bb2 {[%emt 0:01:12]} O-O {[%emt 0:01:17]} 12. Nbd2 {[%emt 0:03:57]} Rd8 {[%emt 0:06:43]} 13. Rc1 {[%emt 0:06:01]} Be7 {[%emt 0:03:17]} 14. h3 {[%emt 0:07:12]} Bd7 {[%emt 0:03:06]} 15. Re1 {[%emt 0:02:44]} Rac8 {[%emt 0:00:52]} 16. a3 {[%emt 0:01:48]} Qb8 {[%emt 0:03:44]} 17. b4 {[%emt 0:00:55]} b5 {[%emt 0:02:33]} 18. Qb3 {[%emt 0:00:57]} a5 {[%emt 0:04:44]} 19. bxa5 {[%emt 0:05:12]} Nxa5 {[%emt 0:00:02]} 20. Qa2 {[%emt 0:00:45]} Nc6 {[%emt 0:01:18]} 21. Nd4 {[%emt 0:07:00]} 0-1

[Event "34th MPL National U12G Chess-ch 2022"]
[Site "Mysore"]
[Date "2022.04.12"]
[Round "7.5"]
[White "Kathakali Dey"]
[Black "Kalyani Sirin"]
[Result "1/2-1/2"]
[ECO "D06"]
[WhiteElo "1130"]
[BlackElo "1243"]
[Annotator "NA RC"]
[PlyCount "126"]
[EventDate "2022.04.09"]
[EventCountry "IND"]
[SourceTitle "playchess.com"]
[Source "ChessBase"]
[SourceQuality "1"]
[TimeControl "5400+30"]

1. Nf3 {[%emt 0:00:04]} Nf6 {[%emt 0:00:14]} 2. d4 {[%emt 0:00:08]} d5 {[%emt 0:00:08]} 3. c4 {[%emt 0:00:06]} Bf5 {[%emt 0:00:35]} 4. Nc3 {[%emt 0:00:39]} e6 {[%emt 0:00:11]} 5. Bg5 {[%emt 0:00:50]} Be7 {[%emt 0:00:39]} 6. e3 {[%emt 0:00:12]} Ne4 {[%emt 0:02:02]} 7. Bxe7 {[%emt 0:02:06]} Qxe7 {[%emt 0:00:51]} 8. cxd5 {[%emt 0:02:14]} Nxc3 {[%emt 0:00:21]} 9. bxc3 {[%emt 0:00:07]} exd5 {[%emt 0:00:24]} 10. Bd3 {[%emt 0:01:34]} Bg6 {[%emt 0:05:28]} 11. O-O {[%emt 0:04:59]} O-O {[%emt 0:01:36]} 12. Ne5 {[%emt 0:01:26]} Bxd3 {[%emt 0:07:43]} 13. Qxd3 {[%emt 0:00:44]} f6 {[%emt 0:10:29]} 14. Nf3 {[%emt 0:00:39]} Nd7 {[%emt 0:00:23]} 15. Qb5 {[%emt 0:13:17]} Nb6 {[%emt 0:01:06]} 16. Nd2 {[%emt 0:01:00]} c6 {[%emt 0:01:20]} 17. Qd3 {[%emt 0:00:25]} Qe6 {[%emt 0:02:55]} 18. a4 {[%emt 0:06:06]} f5 {[%emt 0:09:47]} 19. a5 {[%emt 0:06:02]} Nd7 {[%emt 0:05:18]} 20. Rfe1 {[%emt 0:01:42]} Nf6 {[%emt 0:04:55]} 21. h3 {[%emt 0:01:05]} Kh8 {[%emt 0:02:35]} 22. Nf3 {[%emt 0:05:41]} h6 {[%emt 0:03:21]} 23. Ne5 {[%emt 0:01:54]} Ne4 {[%emt 0:02:40]} 24. f3 {[%emt 0:08:27]} Ng5 {[%emt 0:00:48]} 25. Rab1 {[%emt 0:05:24]} Rab8 {[%emt 0:02:21]} 26. h4 {[%emt 0:02:35]} Nf7 {[%emt 0:01:08]} 27. f4 {[%emt 0:01:43]} Nxe5 {[%emt 0:05:16]} 28. dxe5 {[%emt 0:00:54]} b6 {[%emt 0:05:44]} 29. axb6 {[%emt 0:01:35]} axb6 {[%emt 0:00:12]} 30. Qd4 {[%emt 0:03:41]} c5 {[%emt 0:00:44]} 31. Qd3 {[%emt 0:00:16]} Ra8 {[%emt 0:04:17]} 32. Red1 {[%emt 0:04:08]} Rfd8 {[%emt 0:00:40]} 33. Ra1 {[%emt 0:01:10]} Rxa1 {[%emt 0:01:28]} 34. Rxa1 {[%emt 0:00:08]} g5 {[%emt 0:01:33]} 35. hxg5 {[%emt 0:03:56]} hxg5 {[%emt 0:00:08]} 36. Ra7 {[%emt 0:01:37]} Rd7 {[%emt 0:02:07]} 37. Rxd7 {[%emt 0:20:26]} Qxd7 {[%emt 0:17:33]} 38. fxg5 {[%emt 0:00:00]} Qe6 {[%emt 0:00:00]} 39. Qd1 {[%emt 0:00:00]} Qxe5 {[%emt 0:00:00]} 40. Qh5+ {[%emt 0:00:00]} Kg8 {[%emt 0:00:00]} 41. Qg6+ {[%emt 0:00:00]} Kf8 {[%emt 0:00:00]} 42. Qh6+ {[%emt 0:00:00]} Kg8 {[%emt 0:00:00]} 43. g6 {[%emt 0:00:00]} Qf6 {[%emt 0:00:00]} 44. Qh7+ {[%emt 0:00:00]} Kf8 {[%emt 0:00:00]} 45. Qh6+ {[%emt 0:00:00]} Kg8 {[%emt 0:00:00]} 46. Qh5 {[%emt 0:00:00]} d4 {[%emt 0:00:00]} 47. Qh7+ {[%emt 0:00:00]} Kf8 {[%emt 0:00:00]} 48. exd4 {[%emt 0:00:00]} cxd4 {[%emt 0:00:00]} 49. g7+ {[%emt 0:01:35]} Qxg7 {[%emt 0:00:00]} 50. Qxf5+ {[%emt 0:00:06]} Qf7 {[%emt 0:00:00]} 51. Qc8+ {[%emt 0:00:36]} Qe8 {[%emt 0:00:00]} 52. Qxe8+ {[%emt 0:01:09]} Kxe8 {[%emt 0:00:00]} 53. cxd4 {[%emt 0:00:23]} Ke7 {[%emt 0:00:00]} 54. Kf2 {[%emt 0:00:08]} Ke6 {[%emt 0:00:00]} 55. Ke3 {[%emt 0:00:09]} Kf5 {[%emt 0:02:41]} 56. Kd3 {[%emt 0:00:54]} b5 {[%emt 0:00:14]} 57. Kc3 {[%emt 0:00:24]} Ke4 {[%emt 0:00:21]} 58. g3 {[%emt 0:04:01]} b4+ {[%emt 0:00:18]} 59. Kc4 {[%emt 0:00:22]} b3 {[%emt 0:00:31]} 60. Kxb3 {[%emt 0:00:35]} Kxd4 {[%emt 0:00:06]} 61. Kc2 {[%emt 0:00:19]} Ke3 {[%emt 0:00:23]} 62. Kd1 {[%emt 0:00:23]} Kf3 {[%emt 0:00:05]} 63. Kd2 {[%emt 0:00:08]} Kxg3 {[%emt 0:00:04]} 1/2-1/2

[Event "34th MPL National U12G Chess-ch 2022"]
[Site "Mysore"]
[Date "2022.04.12"]
[Round "7.6"]
[White "Charvi A"]
[Black "Aadya Gupta"]
[Result "1-0"]
[ECO "C54"]
[WhiteElo "1267"]
[BlackElo "1218"]
[Annotator "NA RC"]
[PlyCount "97"]
[EventDate "2022.04.09"]
[EventCountry "IND"]
[SourceTitle "playchess.com"]
[Source "ChessBase"]
[SourceQuality "1"]
[TimeControl "5400+30"]

1. e4 {[%emt 0:00:03]} e5 {[%emt 0:00:03]} 2. Nf3 {[%emt 0:00:19]} Nc6 {[%emt 0:00:04]} 3. Bc4 {[%emt 0:00:24]} Bc5 {[%emt 0:00:04]} 4. c3 {[%emt 0:00:42]} Nf6 {[%emt 0:00:03]} 5. d3 {[%emt 0:00:48]} a6 {[%emt 0:00:03]} 6. Bb3 {[%emt 0:00:28]} d6 {[%emt 0:00:06]} 7. O-O {[%emt 0:00:08]} Ba7 {[%emt 0:00:02]} 8. Nbd2 {[%emt 0:00:27]} O-O {[%emt 0:00:05]} 9. h3 {[%emt 0:00:10]} Be6 {[%emt 0:00:10]} 10. Bc2 {[%emt 0:00:05]} d5 {[%emt 0:00:40]} 11. exd5 {[%emt 0:02:43]} Nxd5 {[%emt 0:00:11]} 12. Ne4 {[%emt 0:00:21]} h6 {[%emt 0:00:47]} 13. Re1 {[%emt 0:00:35]} f5 {[%emt 0:05:44]} 14. Ng3 {[%emt 0:00:39]} Qd6 {[%emt 0:00:37]} 15. Qe2 {[%emt 0:01:18]} e4 {[%emt 0:01:49]} 16. dxe4 {[%emt 0:02:24]} Qxg3 {[%emt 0:00:37]} 17. exd5 {[%emt 0:00:26]} Bxd5 {[%emt 0:00:54]} 18. Be3 {[%emt 0:01:21]} Bxe3 {[%emt 0:01:53]} 19. Qxe3 {[%emt 0:00:12]} Qg6 {[%emt 0:01:15]} 20. Qf4 {[%emt 0:01:30]} Bxf3 {[%emt 0:01:21]} 21. Qxf3 {[%emt 0:00:16]} Kh8 {[%emt 0:02:45]} 22. Qf4 {[%emt 0:00:26]} Rac8 {[%emt 0:02:42]} 23. Rad1 {[%emt 0:00:52]} Qg5 {[%emt 0:03:18]} 24. Qf3 {[%emt 0:05:57]} Rcd8 {[%emt 0:04:03]} 25. Ba4 {[%emt 0:00:33]} Rxd1 {[%emt 0:04:06]} 26. Rxd1 {[%emt 0:00:11]} Rf6 {[%emt 0:03:32]} 27. Bb3 {[%emt 0:01:08]} f4 {[%emt 0:01:32]} 28. Qe4 {[%emt 0:00:49]} Qf5 {[%emt 0:01:45]} 29. Qxf5 {[%emt 0:00:40]} Rxf5 {[%emt 0:00:27]} 30. Rd7 {[%emt 0:00:08]} g5 {[%emt 0:02:12]} 31. Rxc7 {[%emt 0:00:27]} Rb5 {[%emt 0:00:30]} 32. Rd7 {[%emt 0:03:36]} Na5 {[%emt 0:00:49]} 33. Rd5 {[%emt 0:00:08]} Kg7 {[%emt 0:01:41]} 34. Rxb5 {[%emt 0:00:11]} axb5 {[%emt 0:00:15]} 35. Kf1 {[%emt 0:00:08]} Kf6 {[%emt 0:00:03]} 36. Ke2 {[%emt 0:00:05]} Ke5 {[%emt 1:02:22]} 37. Kd3 {[%emt 0:00:05]} Nc6 {[%emt 0:00:00]} 38. a4 {[%emt 0:01:38]} b4 {[%emt 0:00:00]} 39. cxb4 {[%emt 0:00:15]} Nxb4+ {[%emt 0:00:00]} 40. Kc4 {[%emt 0:00:05]} Nc6 {[%emt 0:00:00]} 41. Kc5 {[%emt 0:00:17]} Nb8 {[%emt 0:00:00]} 42. Bd1 {[%emt 0:03:30]} Nd7+ {[%emt 0:00:00]} 43. Kb5 {[%emt 0:00:13]} Kd4 {[%emt 0:00:00]} 44. Bf3 {[%emt 0:00:18]} Nc5 {[%emt 0:00:00]} 45. b4 {[%emt 1:16:01]} Nd3 {[%emt 0:00:00]} 46. Bxb7 {[%emt 0:00:00]} Nxf2 {[%emt 0:00:00]} 47. a5 {[%emt 0:00:00]} Nd3 {[%emt 0:00:00]} 48. a6 {[%emt 0:00:00]} f3 {[%emt 0:00:00]} 49. Bxf3 {[%emt 0:00:00]} 1-0